bitfinex/quotes_SOLUSD_20241001
["timestamp","ask_amount","ask_price","bid_price","bid_amount"]
[1727809736597,23.776884,147.78,147.71,16.5159]
[1727809736804,16.9168,147.79,147.72,1.35361965]
[1727809736973,6.7673,147.77,147.73,6.769]
[1727809737176,6.7673,147.77,147.74,1.35345849]
[1727809737377,16.9168,147.79,147.72,6.7694]
[1727809737576,6.7678,147.76,147.72,6.7694]
[1727809741499,6.7678,147.76,147.71,33.4406]
[1727809741500,6.7695,147.72,147.71,16.5159]
[1727809742576,6.7708,147.7,147.67,16.6647]
[1727809742976,16.923,147.73,147.67,16.6647]
[1727809743173,6.7713,147.68,147.67,16.6647]
[1727809743781,16.923,147.73,147.67,23.4364]
[1727809743782,6.7704,147.71,147.67,23.4364]
[1727809743984,6.7705,147.7,147.67,16.6647]
[1727809744295,1.35182947,147.72,147.67,16.6647]
[1727809744496,6.772,147.67,147.63,22.5151]
[1727809744911,6.7714,147.68,147.63,22.5151]
[1727809745387,6.772,147.67,147.63,22.5151]
[1727809746083,6.7736,147.64,147.6,16.3187]
[1727809746297,6.7737,147.63,147.6,16.3187]
[1727809746606,6.7738,147.63,147.6,16.3187]
[1727809747097,1.35182947,147.66,147.6,16.3187]
[1727809747307,6.776,147.58,147.56,15.0151]
[1727809747485,6.7764,147.57,147.56,15.0151]
[1727809747691,6.776,147.58,147.56,15.0151]
[1727809748476,6.7755,147.59,147.56,15.0151]
[1727809748706,1.35182947,147.61,147.56,15.0151]
[1727809748910,6.7764,147.57,147.56,15.0151]
[1727809749579,6.776,147.58,147.56,15.0151]
[1727809749979,6.7764,147.57,147.56,15.0151]
[1727809750194,6.7761,147.58,147.56,15.0151]
[1727809750701,6.7764,147.57,147.56,15.0151]
[1727809751007,6.776,147.58,147.56,15.0151]
[1727809751688,3.35182947,147.6,147.52,15.4411]
[1727809751893,6.7772,147.56,147.52,15.4411]
[1727809752712,3.35182947,147.6,147.52,15.4411]
[1727809753008,6.7765,147.57,147.52,22.2197]
[1727809753180,6.7769,147.56,147.52,22.2197]
[1727809754288,3.35182947,147.6,147.53,6.7782]
[1727809754289,23.35182947,147.6,147.53,6.7782]
[1727809754482,23.35182947,147.6,147.52,32.3874]
[1727809754684,1.35182947,147.59,147.52,15.4411]
[1727809755287,1.35182947,147.59,147.5,6.2168]
[1727809755610,6.7786,147.53,147.5,6.2168]
[1727809755801,6.7789,147.52,147.48,32.359]
[1727809755991,1.35182947,147.57,147.48,15.4078]
[1727809755992,6.7792,147.51,147.48,15.4078]
[1727809756295,16.943,147.56,147.48,15.4078]
[1727809756296,6.7786,147.53,147.48,15.4078]
[1727809756480,6.7788,147.52,147.48,15.4078]
[1727809756683,1.35182947,147.51,147.44,15.4078]
[1727809756878,20.0,147.53,147.44,15.4078]
[1727809756879,6.7791,147.52,147.44,15.4078]
[1727809757115,6.7791,147.52,147.47,6.7808]
[1727809758806,6.7791,147.52,147.42,55.78208472]
[1727809758807,21.35182947,147.51,147.42,23.7406]
[1727809759204,1.35182947,147.51,147.42,23.7406]
[1727809759988,6.7813,147.47,147.42,16.9573]
[1727809761285,6.7813,147.47,147.42,23.7405]
[1727809762711,1.35182947,147.46,147.4,0.8496845]
[1727809762921,26.4598,147.48,147.4,0.8496845]
[1727809763104,6.7834,147.42,147.4,0.8496845]
[1727809763715,6.7838,147.41,147.4,0.8496845]
[1727809765112,50.560684,147.41,147.4,0.8496845]
[1727809765522,1.35182947,147.44,147.3,6.5821]
[1727809765523,6.7874,147.34,147.3,6.5821]
[1727809765700,6.7879,147.32,147.28,15.4516]
[1727809765893,43.776884,147.36,147.28,15.4516]
[1727809766090,20.0,147.36,147.29,16.9723]
[1727809766294,6.7857,147.37,147.32,6.7878]
[1727809766492,20.0,147.37,147.32,6.7878]
[1727809766713,1.35182947,147.37,147.32,6.7878]
[1727809766916,6.7862,147.36,147.31,16.9702]
[1727809767118,1.35182947,147.38,147.32,1.35739725]
[1727809767419,1.35182947,147.38,147.31,16.9702]
[1727809767588,6.7862,147.36,147.31,16.9702]
[1727809768212,1.35182947,147.38,147.32,1.35737916]
[1727809768415,6.7856,147.38,147.32,6.7875]
[1727809768618,6.7857,147.37,147.31,23.7582]
[1727809768802,1.35182947,147.38,147.31,23.7582]
[1727809768803,8.13712947,147.38,147.33,6.787]
[1727809769810,1.35182947,147.39,147.33,16.968]
[1727809770317,6.786,147.37,147.32,6.7878]
[1727809770522,8.13782947,147.37,147.32,6.7878]
[1727809770832,1.35182947,147.36,147.3,16.972]
[1727809771125,6.7867,147.35,147.3,23.7607]
[1727809771416,1.35182947,147.37,147.33,6.7874]
[1727809771714,2.0,147.4,147.32,16.9688]
[1727809771896,1.35182947,147.39,147.32,16.9688]
[1727809772099,6.7857,147.37,147.32,23.7564]
[1727809773002,2.0,147.4,147.34,16.967]
[1727809773518,2.0,147.4,147.36,6.786]
[1727809773702,3.35182947,147.4,147.34,16.967]
[1727809773902,2.0,147.4,147.34,16.967]
[1727809774202,6.7848,147.39,147.34,23.7536]
[1727809774400,6.7848,147.39,147.35,6.7865]
[1727809775500,6.7859,147.37,147.32,6.7875]
[1727809775701,1.35182947,147.38,147.33,6.7874]
[1727809775702,8.13712947,147.38,147.33,6.7874]
[1727809775902,10.13622947,147.4,147.36,6.786]
[1727809776119,2.0,147.4,147.36,22.5093]
[1727809776332,2.0,147.4,147.37,1.3568875]
[1727809776513,2.0,147.4,147.38,1.35671894]
[1727809776829,2.0,147.4,147.36,15.7233]
[1727809777035,2.0,147.4,147.37,6.7852]
[1727809777316,2.0,147.4,147.37,6.7855]
[1727809777919,2.0,147.4,147.36,39.4738]
[1727809778223,6.7852,147.38,147.36,15.7233]
[1727809778439,6.7852,147.38,147.34,6.7866]
[1727809778939,6.7852,147.38,147.33,30.3273]
[1727809779116,2.0,147.4,147.34,6.7867]
[1727809779117,6.7848,147.39,147.34,6.7867]
[1727809779550,6.7848,147.39,147.35,6.7865]
[1727809780043,6.7852,147.38,147.34,6.7868]
[1727809780240,6.7852,147.38,147.33,23.54]
[1727809780241,6.7858,147.37,147.33,23.54]
[1727809780424,1.35182947,147.38,147.33,16.968]
[1727809780635,1.35182947,147.38,147.32,16.4418]
[1727809780833,1.35182947,147.38,147.32,23.2296]
[1727809781051,6.7861,147.36,147.32,23.2296]
[1727809781628,6.7857,147.37,147.32,23.2296]
[1727809782643,8.13792947,147.36,147.32,23.2296]
[1727809782850,6.7865,147.35,147.32,16.4418]
[1727809783047,1.35182947,147.34,147.29,13.1996]
[1727809783340,6.7875,147.33,147.28,15.9266]
[1727809783541,1.35182947,147.34,147.28,22.7162]
[1727809783745,1.35182947,147.34,147.28,15.9266]
[1727809783952,1.35182947,147.35,147.28,15.9266]
[1727809784248,8.13832947,147.35,147.29,16.9727]
[1727809784433,6.7862,147.36,147.29,16.9727]
[1727809784614,1.35182947,147.37,147.31,16.9706]
[1727809784820,6.7852,147.38,147.33,6.7873]
[1727809786066,8.13652947,147.39,147.34,6.7869]
[1727809786245,8.13652947,147.39,147.34,8.14401221]
[1727809786558,8.13652947,147.39,147.34,6.7869]
[1727809788147,6.7852,147.38,147.34,6.7869]
[1727809788941,8.13662947,147.39,147.34,6.7869]
[1727809789248,22.0,147.4,147.34,6.7869]
[1727809789249,2.0,147.4,147.35,16.47222184]
[1727809789440,2.0,147.4,147.38,6.7848]
[1727809789639,2.0,147.4,147.37,23.7489]
[1727809790458,2.0,147.4,147.38,8.14169968]
[1727809790767,2.0,147.4,147.38,6.7848]
[1727809790944,2.0,147.4,147.37,23.7489]
[1727809791352,2.0,147.4,147.38,6.785]
[1727809791859,2.0,147.4,147.39,8.1414825]
[1727809792254,2.0,147.4,147.39,6.7847]
[1727809795778,2.0,147.4,147.38,26.7851]
[1727809796869,2.0,147.4,147.38,6.7851]
[1727809797170,2.0,147.4,147.37,16.9635]
[1727809797171,2.0,147.4,147.39,6.7847]
[1727809798380,2.0,147.4,147.39,51.91816371]
[1727809798549,2.0,147.4,147.39,50.561584]
[1727809799860,2.0,147.4,147.39,20.0]
[1727809800744,8.7843,147.4,147.37,16.9635]
[1727809800945,2.0,147.4,147.38,1.35680498]
[1727809801160,2.0,147.4,147.37,16.9635]
[1727809801161,8.7843,147.4,147.37,16.9635]
[1727809801565,8.7843,147.4,147.36,6.7859]
[1727809801746,2.0,147.4,147.35,15.1151]
[1727809802075,2.0,147.4,147.34,16.9668]
[1727809802882,1.35182947,147.39,147.31,32.3596]
[1727809803174,6.786,147.37,147.32,26.7876]
[1727809803392,6.7874,147.34,147.29,6.7891]
[1727809803553,6.787,147.34,147.29,6.7889]
[1727809803753,2.0,147.4,147.3,16.9716]
[1727809803975,6.7852,147.38,147.33,6.7871]
[1727809804978,2.0,147.4,147.34,23.776884]
[1727809805162,2.0,147.4,147.33,36.9679]
[1727809805357,6.7852,147.38,147.33,43.755]
[1727809805581,6.7852,147.38,147.34,6.7869]
[1727809806063,6.7849,147.39,147.35,6.7864]
[1727809806472,2.0,147.4,147.35,16.9657]
[1727809806676,2.0,147.4,147.38,6.7848]
[1727809806978,2.0,147.4,147.37,16.9632]
[1727809807176,2.0,147.4,147.35,15.2459]
[1727809807357,2.0,147.4,147.32,20.0]
[1727809807561,6.7862,147.36,147.31,32.9262]
[1727809807777,1.35182947,147.39,147.31,32.9262]
[1727809807970,6.785,147.39,147.34,6.7869]
[1727809808172,2.0,147.4,147.35,6.7864]
[1727809808374,2.0,147.4,147.31,15.9559]
[1727809808682,6.7857,147.37,147.32,23.7572]
[1727809808885,1.35182947,147.39,147.32,16.9693]
[1727809809060,16.9639,147.38,147.31,20.0]
[1727809809386,6.7857,147.37,147.32,6.7877]
[1727809809872,1.35182947,147.39,147.31,36.9704]
[1727809810070,6.786,147.37,147.32,6.7879]
[1727809810254,1.35182947,147.39,147.31,36.9704]
[1727809810460,1.35182947,147.39,147.27,16.3835]
[1727809810685,6.789,147.3,147.26,6.7906]
[1727809810872,6.789,147.3,147.25,24.6180845]
[1727809811357,6.7896,147.29,147.25,17.8270845]
[1727809812581,6.7884,147.31,147.26,6.7905]
[1727809812778,6.7892,147.3,147.25,24.6180845]
[1727809813167,1.35182947,147.29,147.25,0.8496845]
[1727809813374,6.7898,147.28,147.25,0.8496845]
[1727809813969,6.7907,147.26,147.25,0.8496845]
[1727809814374,14.77162947,147.35,147.31,6.7883]
[1727809814694,14.77162947,147.35,147.3,6.7887]
[1727809814695,14.77172947,147.35,147.3,6.7887]
[1727809815061,14.77172947,147.35,147.31,6.7882]
[1727809815285,1.35182947,147.36,147.29,16.9731]
[1727809815486,6.7865,147.36,147.3,6.7884]
[1727809815794,6.7866,147.35,147.31,6.7882]
[1727809816672,6.7866,147.35,147.29,16.9731]
[1727809816673,6.7866,147.35,147.3,6.7887]
[1727809817070,6.787,147.34,147.3,6.7887]
[1727809817279,1.35182947,147.38,147.3,6.7887]
[1727809817483,6.7866,147.35,147.31,6.7883]
[1727809817775,6.7875,147.33,147.29,16.9731]
[1727809818092,6.7889,147.3,147.26,39.027]
[1727809818389,1.35182947,147.35,147.31,6.788]
[1727809818584,6.7864,147.36,147.32,1.3574048]
[1727809818773,1.35182947,147.38,147.26,86.32907711]
[1727809818774,1.35182947,147.35,147.27,16.9754]
[1727809818973,6.787,147.34,147.26,86.32907711]
[1727809819272,8.13822947,147.36,147.29,16.9728]
[1727809819467,1.35182947,147.36,147.31,6.7883]
[1727809819682,1.35182947,147.36,147.3,6.7888]
[1727809819882,1.35182947,147.36,147.29,16.9728]
[1727809820073,6.7871,147.34,147.3,6.7888]
[1727809820587,6.7867,147.35,147.3,6.7888]
[1727809820799,8.13792947,147.36,147.31,1.35750747]
[1727809820970,8.13752947,147.37,147.32,8.14497964]
[1727809821287,8.13752947,147.37,147.33,6.7872]
[1727809821491,6.7857,147.37,147.33,6.7872]
[1727809822771,6.7863,147.36,147.32,8.1451095]
[1727809823173,6.7863,147.36,147.32,6.7878]
[1727809824094,1.35182947,147.39,147.33,18.32531166]
[1727809824396,10.13622947,147.4,147.36,6.786]
[1727809825467,6.7848,147.39,147.35,6.7864]
[1727809826368,6.7848,147.39,147.34,6.7869]
[1727809827072,6.7848,147.39,147.33,16.968]
[1727809827073,6.7856,147.38,147.33,23.7553]
[1727809827291,2.0,147.4,147.3,16.9716]
[1727809827292,6.7871,147.34,147.3,16.9716]
[1727809827494,6.7876,147.33,147.29,6.7891]
[1727809827784,6.7876,147.33,147.27,16.9747]
[1727809827785,1.35182947,147.37,147.27,16.9747]
[1727809827998,6.787,147.34,147.3,6.7888]
[1727809828192,1.35182947,147.33,147.27,16.9747]
[1727809828372,6.788,147.32,147.27,16.9747]
[1727809828700,6.7875,147.33,147.29,6.7892]
[1727809828872,1.35182947,147.35,147.3,6.7884]
[1727809829075,1.35182947,147.36,147.26,92.80207711]
[1727809829277,6.7857,147.37,147.33,6.7873]
[1727809829973,6.7852,147.38,147.33,6.7873]
[1727809830168,6.7852,147.38,147.34,8.14421604]
[1727809830390,6.7852,147.38,147.34,6.787]
[1727809830822,8.6505,147.4,147.35,1.35722026]
[1727809830994,2.0,147.4,147.34,15.4608]
[1727809831191,2.0,147.4,147.36,6.7859]
[1727809832092,8.7845,147.4,147.36,6.7859]
[1727809832983,8.7845,147.4,147.37,1.35693775]
[1727809833180,8.7845,147.4,147.36,6.7859]
[1727809833393,8.7845,147.4,147.39,26.7847]
[1727809833394,2.0,147.4,147.39,26.7847]
[1727809833579,2.0,147.4,147.39,50.561584]
[1727809833991,2.0,147.4,147.39,26.7847]
[1727809835215,2.0,147.4,147.39,50.561584]
[1727809835382,1.35182947,147.49,147.39,45.13341928]
[1727809835581,6.7797,147.5,147.45,6.7816]
[1727809835879,1.35182947,147.51,147.44,16.9554]
[1727809836113,1.35182947,147.51,147.45,6.7819]
[1727809836780,6.7796,147.5,147.45,6.7819]
[1727809837001,1.35182947,147.49,147.45,6.7819]
[1727809837493,8.13202947,147.49,147.45,6.7819]
[1727809837805,1.35182947,147.48,147.41,16.959]
[1727809838005,23.776884,147.5,147.41,16.959]
[1727809838299,1.35182947,147.49,147.41,16.959]
[1727809838611,6.7825,147.44,147.4,20.0]
[1727809838905,1.35182947,147.47,147.42,6.7833]
[1727809839086,6.7819,147.45,147.41,6.7836]
[1727809839486,6.7819,147.45,147.4,16.96]
[1727809839487,8.13292947,147.47,147.4,16.96]
[1727809839694,1.35182947,147.49,147.42,1.35648528]
[1727809839895,1.35182947,147.5,147.46,6.7814]
[1727809840182,6.7795,147.51,147.46,6.7814]
[1727809840399,6.7797,147.5,147.46,6.7814]
[1727809840584,1.35182947,147.54,147.48,6.7805]
[1727809841290,6.7797,147.5,147.46,23.7343]
[1727809841808,6.7797,147.5,147.43,43.17337711]
[1727809841809,6.7807,147.48,147.44,26.7823]
[1727809842013,23.776884,147.53,147.45,6.7819]
[1727809842306,6.7798,147.5,147.45,6.7819]
[1727809842685,6.7798,147.5,147.46,6.7814]
[1727809843907,6.7798,147.5,147.45,23.7362]
[1727809844112,6.7798,147.5,147.46,6.7813]
[1727809844285,6.7793,147.51,147.47,1.3560215]
[1727809844487,6.7793,147.51,147.47,6.7809]
[1727809844690,8.13062947,147.52,147.48,1.35593411]
[1727809845015,6.7788,147.52,147.48,1.35593411]
[1727809845717,8.13122947,147.51,147.47,6.7809]
[1727809846007,6.7794,147.51,147.47,6.7809]
[1727809846205,1.35182947,147.5,147.43,57.11727711]
[1727809846415,36.9477,147.52,147.42,33.3383]
[1727809846595,1.35182947,147.51,147.42,33.3383]
[1727809846906,6.7807,147.48,147.43,6.7824]
[1727809847409,6.7807,147.48,147.44,6.7823]
[1727809848500,8.13292947,147.47,147.42,40.1213]
[1727809848682,6.7811,147.47,147.42,33.3383]
[1727809848884,6.7811,147.47,147.43,6.7828]
[1727809849392,6.7811,147.47,147.43,8.13913982]
[1727809849582,6.7802,147.49,147.45,23.7356]
[1727809849785,6.7798,147.5,147.46,1.35614781]
[1727809850087,1.35182947,147.52,147.48,6.7802]
[1727809850288,8.13062947,147.52,147.48,6.7802]
[1727809850509,8.13012947,147.53,147.49,1.35590372]
[1727809851381,6.7783,147.53,147.49,6.7799]
[1727809852889,1.35182947,147.52,147.47,16.9516]
[1727809853094,6.7792,147.51,147.47,23.7324]
[1727809854338,6.7792,147.51,147.47,16.9516]
[1727809854623,6.7792,147.51,147.48,1.355952]
[1727809855324,1.35182947,147.5,147.44,16.9552]
[1727809855528,6.7802,147.49,147.45,6.7819]
[1727809855832,6.7802,147.49,147.46,1.35608888]
[1727809856526,1.35182947,147.53,147.46,18.30938888]
[1727809856718,6.7793,147.51,147.47,6.7806]
[1727809856904,6.7793,147.51,147.47,8.13652092]
[1727809857518,8.13022947,147.53,147.49,6.7801]
[1727809857835,21.35182947,147.55,147.45,43.776884]
[1727809858027,6.7787,147.52,147.48,6.7804]
[1727809860309,1.35182947,147.51,147.43,33.9123]
[1727809860513,6.7802,147.49,147.45,6.7816]
[1727809860712,6.7806,147.48,147.44,23.7372]
[1727809861220,6.7801,147.49,147.45,8.13780982]
[1727809861612,6.7801,147.49,147.45,6.7817]
[1727809862024,6.7806,147.48,147.44,23.7373]
[1727809862533,1.35182947,147.47,147.41,16.9586]
[1727809862714,6.782,147.45,147.41,23.7422]
[1727809862914,6.555,147.48,147.39,22.2059]
[1727809863113,16.9557,147.45,147.36,6.306]
[1727809863338,6.555,147.48,147.35,15.9578]
[1727809863339,6.785,147.39,147.35,15.9578]
[1727809863537,16.9579,147.43,147.35,15.9578]
[1727809863835,6.7843,147.4,147.36,1.35706058]
[1727809864027,21.35182947,147.47,147.34,16.9665]
[1727809864225,52.489284,147.43,147.31,33.3987]
[1727809864419,18.31112947,147.42,147.32,6.7878]
[1727809864832,6.7861,147.36,147.32,6.7878]
[1727809865023,6.7866,147.35,147.31,33.3987]
[1727809865217,7.47562947,147.4,147.29,6.7892]
[1727809865218,8.13882947,147.34,147.29,6.7892]
[1727809865533,6.7875,147.33,147.28,22.9862]
[1727809865746,6.7869,147.35,147.3,6.7884]
[1727809866026,6.7875,147.33,147.28,29.7759]
[1727809866231,6.7875,147.33,147.28,23.764]
[1727809867433,43.776884,147.37,147.28,16.9743]
[1727809867643,1.35182947,147.36,147.27,16.3264]
[1727809867806,23.776884,147.35,147.27,16.3264]
[1727809868013,1.35182947,147.34,147.27,16.3264]
[1727809868435,21.35182947,147.34,147.27,16.3264]
[1727809868930,1.35182947,147.34,147.28,1.35779043]
[1727809869109,1.35182947,147.34,147.27,16.3264]
[1727809870131,6.7893,147.29,147.25,17.8272845]
[1727809870326,1.35182947,147.34,147.25,0.8496845]
[1727809870327,6.7902,147.27,147.25,0.8496845]
[1727809870522,1.35182947,147.26,147.25,0.8496845]
[1727809870730,6.7897,147.29,147.25,0.8496845]
[1727809870931,1.35182947,147.28,147.25,0.8496845]
[1727809871139,8.14072947,147.3,147.25,7.6407845]
[1727809871344,6.7902,147.27,147.25,0.8496845]
[1727809871723,1.35182947,147.26,147.25,0.8496845]
[1727809871923,8.14252947,147.26,147.25,0.8496845]
[1727809872126,6.7907,147.26,147.25,0.8496845]
[1727809873135,6.7907,147.26,147.19,7.03804028]
[1727809873136,6.7934,147.2,147.19,7.03804028]
[1727809873337,6.7934,147.2,147.12,40.7767]
[1727809873338,6.7948,147.17,147.12,30.5821]
[1727809873522,6.7948,147.17,147.13,6.7966]
[1727809873725,8.14722947,147.16,147.12,16.9925]
[1727809873914,6.7954,147.16,147.12,16.9925]
[1727809874116,23.776884,147.18,147.12,16.9925]
[1727809874315,1.35182947,147.17,147.1,17.5075845]
[1727809874739,8.14712947,147.17,147.12,6.797]
[1727809875141,36.9816,147.22,147.1,34.5026845]
[1727809875142,8.14742947,147.16,147.11,6.7975]
[1727809875352,1.35182947,147.15,147.12,6.797]
[1727809875638,6.7948,147.17,147.11,6.7973]
[1727809875835,8.14712947,147.16,147.11,6.7973]
[1727809876043,1.35182947,147.15,147.11,6.7973]
[1727809876247,1.35182947,147.21,147.12,8.1561166]
[1727809876422,6.7948,147.18,147.12,6.7968]
[1727809876623,1.35182947,147.17,147.12,6.7968]
[1727809877046,1.35182947,147.17,147.13,6.7965]
[1727809878126,6.7954,147.16,147.11,6.7972]
[1727809878326,1.35182947,147.15,147.11,6.7972]
[1727809879131,1.35182947,147.15,147.1,17.8447845]
[1727809879330,43.776884,147.19,147.1,0.8496845]
[1727809879670,6.7976,147.11,147.1,0.8496845]
[1727809879838,30.574484,147.11,147.1,0.8496845]
[1727809880227,31.92631347,147.11,147.1,0.8496845]
[1727809880651,8.14942947,147.11,147.1,0.8496845]
[1727809880947,8.14852947,147.13,147.1,0.8496845]
[1727809881534,6.7976,147.11,147.1,0.8496845]
[1727809881739,8.14942947,147.11,147.1,0.8496845]
[1727809882054,6.7976,147.11,147.1,0.8496845]
[1727809882730,30.574484,147.11,147.1,0.8496845]
[1727809883025,50.574484,147.11,147.1,0.8496845]
[1727809884238,1.35182947,147.13,147.1,0.8496845]
[1727809884550,6.5431,147.16,147.1,0.8496845]
[1727809884551,1.35182947,147.15,147.1,0.8496845]
[1727809884757,1.35182947,147.14,147.1,0.8496845]
[1727809884929,6.7976,147.11,147.1,0.8496845]
[1727809885630,26.7976,147.11,147.1,0.8496845]
[1727809886153,50.574484,147.11,147.1,0.8496845]
[1727809887169,6.7987,147.09,147.03,17.0022]
[1727809887378,1.35182947,147.08,147.05,6.8]
[1727809887525,1.35182947,147.08,147.04,6.8004]
[1727809887725,1.35182947,147.08,147.03,17.0022]
[1727809887726,8.15082947,147.08,147.03,23.8034]
[1727809887929,1.35182947,147.12,147.06,6.7997]
[1727809888133,6.7967,147.13,147.07,1.3598567]
[1727809888340,1.35182947,147.12,147.04,20.0]
[1727809888640,6.7967,147.13,147.08,6.7989]
[1727809888943,1.35182947,147.15,147.06,15.4487]
[1727809889139,1.35182947,147.15,147.1,16.9944]
[1727809889333,1.18005104,147.2,147.1,16.9944]
[1727809889334,1.35182947,147.18,147.13,6.7966]
[1727809889537,1.35182947,147.18,147.1,16.9944]
[1727809889744,6.7958,147.15,147.11,6.7974]
[1727809889940,1.35182947,147.14,147.1,16.9944]
[1727809890157,1.35182947,147.17,147.1,23.7924]
[1727809890352,6.7958,147.15,147.1,23.7924]
[1727809890537,1.35182947,147.14,147.1,23.7924]
[1727809891554,16.9865,147.18,147.13,6.7966]
[1727809891555,21.35182947,147.17,147.13,6.7966]
[1727809891757,1.35182947,147.17,147.13,8.15576049]
[1727809892668,6.7945,147.18,147.13,8.15576049]
[1727809892669,1.35182947,147.2,147.17,6.7947]
[1727809892866,6.7939,147.19,147.14,6.7961]
[1727809893172,6.7952,147.17,147.13,23.788]
[1727809893363,6.794,147.19,147.15,6.7957]
[1727809893570,8.14492947,147.21,147.16,1.35896686]
[1727809893758,1.35182947,147.24,147.16,1.35896686]
[1727809894075,6.7923,147.23,147.18,6.794]
[1727809894259,6.7923,147.23,147.18,23.7796]
[1727809894464,6.7923,147.23,147.19,8.15239704]
[1727809894665,1.35182947,147.26,147.21,6.7929]
[1727809894971,1.35182947,147.26,147.2,16.9831]
[1727809895273,1.35182947,147.26,147.22,6.7925]
[1727809895444,1.35182947,147.26,147.21,1.35844239]
[1727809895852,6.7908,147.26,147.21,6.7929]
[1727809896144,1.35182947,147.27,147.2,16.9831]
[1727809896468,8.14232947,147.27,147.22,6.7925]
[1727809896660,6.7912,147.25,147.2,16.9831]
[1727809896864,1.35182947,147.27,147.16,57.11727711]
[1727809897069,6.7898,147.28,147.22,16.9807]
[1727809897379,6.7898,147.28,147.23,1.35817314]
[1727809897579,1.35182947,147.31,147.23,1.35817314]
[1727809897770,8.14052947,147.31,147.26,6.7905]
[1727809898066,8.14052947,147.31,147.25,16.9769]
[1727809898067,8.14052947,147.31,147.27,8.14804391]
[1727809898375,1.35182947,147.3,147.25,16.9769]
[1727809898557,6.7898,147.28,147.24,6.7916]
[1727809898874,6.7898,147.28,147.23,22.2742]
[1727809899450,6.7898,147.28,147.24,6.7915]
[1727809899754,6.7903,147.27,147.24,1.35797927]
[1727809900061,6.7908,147.26,147.23,15.4822]
[1727809900259,1.35182947,147.25,147.19,33.2071]
[1727809900576,6.7916,147.25,147.2,6.7933]
[1727809900888,1.35182947,147.28,147.22,6.7924]
[1727809900889,6.7903,147.27,147.22,6.7924]
[1727809901179,6.7907,147.26,147.22,6.7924]
[1727809902258,6.7907,147.26,147.21,16.9817]
[1727809902579,6.7907,147.26,147.21,23.7746]
[1727809902764,6.7907,147.26,147.22,1.35821659]
[1727809902955,6.7907,147.26,147.21,23.7746]
[1727809903153,1.35182947,147.29,147.22,25.13510297]
[1727809903359,6.7898,147.28,147.23,6.7917]
[1727809903580,20.0,147.31,147.21,16.9817]
[1727809903581,1.35182947,147.27,147.21,16.9817]
[1727809903878,6.7912,147.25,147.2,6.7933]
[1727809904353,6.7907,147.26,147.22,6.7924]
[1727809904553,6.7907,147.26,147.22,1.35818071]
[1727809905204,1.35182947,147.31,147.23,1.35818898]
[1727809905349,6.7889,147.3,147.26,6.7903]
[1727809905550,1.35182947,147.29,147.24,16.9779]
[1727809905754,6.79,147.28,147.24,23.7694]
[1727809905962,6.7893,147.29,147.24,23.7694]
[1727809907253,6.7898,147.28,147.24,23.7694]
[1727809908461,6.7902,147.27,147.22,6.7921]
[1727809908666,1.35182947,147.26,147.21,16.9819]
[1727809908866,6.7916,147.24,147.19,23.0165]
[1727809909065,6.7921,147.23,147.19,16.2227]
[1727809909266,23.776884,147.27,147.19,16.2227]
[1727809909482,1.35182947,147.26,147.19,16.2227]
[1727809909862,6.7926,147.22,147.19,16.2227]
[1727809910059,1.35182947,147.26,147.15,16.1139]
[1727809910060,16.9812,147.23,147.15,16.1139]
[1727809910375,1.35182947,147.22,147.15,16.1139]
[1727809910566,6.7935,147.2,147.16,6.7952]
[1727809911283,6.7943,147.19,147.15,16.1139]
[1727809911663,6.7943,147.19,147.15,17.47276603]
[1727809911857,6.7943,147.19,147.15,16.1139]
[1727809912485,6.7943,147.19,147.15,22.9095]
[1727809912885,6.7943,147.19,147.14,23.2882]
[1727809912886,6.795,147.17,147.13,6.7965]
[1727809913067,1.35182947,147.22,147.13,6.7965]